[Event "Titled Tuesday Blitz January 31 Late 2023"]
[White "Reprintsev, Alexander"]
[Black "Aung Thant Zin"]
[WhiteFideId "14100541"]
[BlackFideId "13000063"]
[WhiteElo "2253"]
[BlackElo "2268"]
[Result "1-0"]
[Round "01"]
[TimeControl "180+2"]
[Date "2023.01.31"]
[WhiteClock "0:00:07"]
[BlackClock "0:00:08"]

1. e4 {[%clk 0:02:52]}  c5 {[%clk 0:02:59]} 2. b3 {[%clk 0:02:48]}  Nc6 {[%clk 0:02:59]} 3. Bb2 {[%clk 0:02:43]}  d6 {[%clk 0:02:59]} 4. Bb5 {[%clk 0:02:42]}  Bd7 {[%clk 0:02:58]} 5. Ne2 {[%clk 0:02:40]}  e5 {[%clk 0:02:58]} 6. O-O {[%clk 0:02:31]}  Nf6 {[%clk 0:02:46]} 7. d3 {[%clk 0:02:28]}  Be7 {[%clk 0:02:45]} 8. Nd2 {[%clk 0:02:20]}  O-O {[%clk 0:02:45]} 9. Ng3 {[%clk 0:02:12]}  Re8 {[%clk 0:02:37]} 10. f4 {[%clk 0:02:07]}  Ng4 {[%clk 0:02:18]} 11. Bxc6 {[%clk 0:01:46]}  bxc6 {[%clk 0:02:12]} 12. fxe5 {[%clk 0:01:28]}  dxe5 {[%clk 0:01:59]} 13. Qe2 {[%clk 0:01:23]}  Bg5 {[%clk 0:01:37]} 14. Nc4 {[%clk 0:01:19]}  f6 {[%clk 0:01:25]} 15. h3 {[%clk 0:01:08]}  Nh6 {[%clk 0:01:21]} 16. Nd6 {[%clk 0:00:59]}  Re7 {[%clk 0:01:08]} 17. Ndf5 {[%clk 0:00:58]}  Nxf5 {[%clk 0:01:03]} 18. Nxf5 {[%clk 0:00:58]}  Bxf5 {[%clk 0:01:02]} 19. Rxf5 {[%clk 0:00:56]}  Bh6 {[%clk 0:01:00]} 20. Raf1 {[%clk 0:00:51]}  Qa5 {[%clk 0:00:53]} 21. a4 {[%clk 0:00:50]}  Qb6 {[%clk 0:00:47]} 22. Kh1 {[%clk 0:00:42]}  Rd8 {[%clk 0:00:39]} 23. Qf2 {[%clk 0:00:36]}  Qc7 {[%clk 0:00:33]} 24. Qxc5 {[%clk 0:00:27]}  Re6 {[%clk 0:00:26]} 25. Bc1 {[%clk 0:00:22]}  Bxc1 {[%clk 0:00:19]} 26. Rxc1 {[%clk 0:00:23]}  g6 {[%clk 0:00:17]} 27. Rf2 {[%clk 0:00:20]}  Kg7 {[%clk 0:00:17]} 28. Rcf1 {[%clk 0:00:20]}  Rdd6 {[%clk 0:00:14]} 29. Qe3 {[%clk 0:00:20]}  Qd7 {[%clk 0:00:14]} 30. Qg3 {[%clk 0:00:20]}  c5 {[%clk 0:00:13]} 31. h4 {[%clk 0:00:19]}  h5 {[%clk 0:00:12]} 32. Kh2 {[%clk 0:00:15]}  Qe7 {[%clk 0:00:09]} 33. Qh3 {[%clk 0:00:15]}  Rd4 {[%clk 0:00:07]} 34. Rf3 {[%clk 0:00:14]}  a5 {[%clk 0:00:08]} 35. R1f2 {[%clk 0:00:14]}  Rdd6 {[%clk 0:00:07]} 36. Kg1 {[%clk 0:00:12]}  Rd4 {[%clk 0:00:08]} 37. Kf1 {[%clk 0:00:12]}  Rdd6 {[%clk 0:00:07]} 38. Ke2 {[%clk 0:00:12]}  Rd4 {[%clk 0:00:08]} 39. g4 {[%clk 0:00:12]}  hxg4 {[%clk 0:00:07]} 40. Qxg4 {[%clk 0:00:12]}  f5 {[%clk 0:00:07]} 41. Qg5 {[%clk 0:00:09]}  Qxg5 {[%clk 0:00:06]} 42. hxg5 {[%clk 0:00:09]}  f4 {[%clk 0:00:07]} 43. Rh3 {[%clk 0:00:09]}  c4 {[%clk 0:00:07]} 44. bxc4 {[%clk 0:00:07]}  Rb6 {[%clk 0:00:07]} 45. Rfh2 {[%clk 0:00:07]}  Kf7 {[%clk 0:00:08]} 46. Rh7+ {[%clk 0:00:07]}  Ke6 {[%clk 0:00:08]} 47. R2h6 {[%clk 0:00:07]}  Kd6 {[%clk 0:00:07]} 48. Rxg6+ {[%clk 0:00:08]}  Kc5 {[%clk 0:00:08]} 49. Rd7 {[%clk 0:00:07]}  Rxd7 {[%clk 0:00:08]} 50. Rg8 {[%clk 0:00:07]}  Rbb7 {[%clk 0:00:08]} 51. Rc8+ {[%clk 0:00:07]}  Kd6 {[%clk 0:00:08]} 52. Re8 {[%clk 0:00:06]}  Re7 {[%clk 0:00:07]} 53. Rd8+ {[%clk 0:00:06]}  Ke6 {[%clk 0:00:07]} 54. Ra8 {[%clk 0:00:07]}  Ra7 {[%clk 0:00:07]} 55. Rb8 {[%clk 0:00:07]}  Kf7 {[%clk 0:00:07]} 56. Rb6 {[%clk 0:00:07]}  Kg7 {[%clk 0:00:06]} 57. Kf3 {[%clk 0:00:05]}  Rf7 {[%clk 0:00:07]} 58. c5 {[%clk 0:00:04]}  Rfc7 {[%clk 0:00:07]} 59. c6 {[%clk 0:00:03]}  Kg6 {[%clk 0:00:07]} 60. c3 {[%clk 0:00:03]}  Ra8 {[%clk 0:00:06]} 61. d4 {[%clk 0:00:03]}  exd4 {[%clk 0:00:06]} 62. cxd4 {[%clk 0:00:03]}  Kxg5 {[%clk 0:00:06]} 63. d5 {[%clk 0:00:03]}  Rac8 {[%clk 0:00:07]} 64. e5 {[%clk 0:00:03]}  Rh7 {[%clk 0:00:06]} 65. Ke4 {[%clk 0:00:02]}  Rh4 {[%clk 0:00:06]} 66. d6 {[%clk 0:00:02]}  Rh3 {[%clk 0:00:07]} 67. Kd5 {[%clk 0:00:02]}  Rd3+ {[%clk 0:00:07]} 68. Ke6 {[%clk 0:00:02]}  f3 {[%clk 0:00:06]} 69. Kd7 {[%clk 0:00:03]}  Rh8 {[%clk 0:00:06]} 70. Rb1 {[%clk 0:00:03]}  f2 {[%clk 0:00:06]} 71. e6 {[%clk 0:00:03]}  Rd2 {[%clk 0:00:04]} 72. Rf1 {[%clk 0:00:03]}  Rf8 {[%clk 0:00:03]} 73. e7 {[%clk 0:00:03]}  Rf7 {[%clk 0:00:04]} 74. c7 {[%clk 0:00:02]}  Rc2 {[%clk 0:00:04]} 75. c8=Q {[%clk 0:00:02]}  Rxc8 {[%clk 0:00:04]} 76. Kxc8 {[%clk 0:00:03]}  Rf6 {[%clk 0:00:04]} 77. Kd7 {[%clk 0:00:03]}  Rxd6+ {[%clk 0:00:04]} 78. Kxd6 {[%clk 0:00:03]}  Kg4 {[%clk 0:00:04]} 79. Rxf2 {[%clk 0:00:04]}  Kg3 {[%clk 0:00:05]} 80. e8=Q {[%clk 0:00:05]}  Kxf2 {[%clk 0:00:06]} 81. Qe5 {[%clk 0:00:06]}  Kf3 {[%clk 0:00:07]} 82. Qxa5 {[%clk 0:00:06]}  Kg4 {[%clk 0:00:08]} 83. Qe5 {[%clk 0:00:07]} 1-0


[Site "https://www.chess.com"]

[Event "Titled Tuesday Blitz January 31 Late 2023"]
[White "Acosta Cruz, Oscar Yosimar"]
[Black "Guzman, Christopher"]
[WhiteFideId "5111269"]
[BlackFideId "6405096"]
[WhiteElo "2098"]
[BlackElo "2271"]
[Result "1-0"]
[Round "01"]
[TimeControl "180+2"]
[Date "2023.01.31"]
[WhiteClock "0:00:58"]
[BlackClock "0:01:58"]

1. e4 {[%clk 0:02:59]}  c6 {[%clk 0:02:59]} 2. d3 {[%clk 0:02:58]}  d5 {[%clk 0:03:00]} 3. Nf3 {[%clk 0:02:56]}  Bg4 {[%clk 0:02:59]} 4. Nbd2 {[%clk 0:02:53]}  Nf6 {[%clk 0:02:59]} 5. h3 {[%clk 0:02:51]}  Bxf3 {[%clk 0:02:59]} 6. Qxf3 {[%clk 0:02:46]}  Nbd7 {[%clk 0:03:00]} 7. g3 {[%clk 0:02:43]}  e6 {[%clk 0:02:58]} 8. Bg2 {[%clk 0:02:43]}  Bc5 {[%clk 0:02:59]} 9. O-O {[%clk 0:02:43]}  O-O {[%clk 0:02:59]} 10. Re1 {[%clk 0:02:43]}  a5 {[%clk 0:02:56]} 11. a4 {[%clk 0:02:40]}  e5 {[%clk 0:02:53]} 12. Nb3 {[%clk 0:02:33]}  dxe4 {[%clk 0:02:53]} 13. dxe4 {[%clk 0:02:32]}  Be7 {[%clk 0:02:53]} 14. Be3 {[%clk 0:02:30]}  Qc7 {[%clk 0:02:53]} 15. Rad1 {[%clk 0:02:28]}  Rfd8 {[%clk 0:02:53]} 16. g4 {[%clk 0:02:27]}  h6 {[%clk 0:02:53]} 17. Bf1 {[%clk 0:02:25]}  Nb6 {[%clk 0:02:47]} 18. h4 {[%clk 0:02:23]}  Nxa4 {[%clk 0:02:45]} 19. g5 {[%clk 0:02:20]}  hxg5 {[%clk 0:02:44]} 20. hxg5 {[%clk 0:02:21]}  Nh7 {[%clk 0:02:41]} 21. Qf5 {[%clk 0:01:52]}  g6 {[%clk 0:02:39]} 22. Qg4 {[%clk 0:01:51]}  Nxb2 {[%clk 0:02:38]} 23. Rb1 {[%clk 0:01:50]}  Na4 {[%clk 0:02:36]} 24. Kg2 {[%clk 0:01:49]}  b5 {[%clk 0:02:33]} 25. Be2 {[%clk 0:01:40]}  Nc3 {[%clk 0:02:28]} 26. Rh1 {[%clk 0:01:27]}  Qd7 {[%clk 0:02:22]} 27. Qh4 {[%clk 0:01:27]}  Kf8 {[%clk 0:02:05]} 28. Qxh7 {[%clk 0:01:20]}  Bd6 {[%clk 0:01:58]} 29. Qh8+ {[%clk 0:00:58]}  Ke7 {[%clk 0:01:58]} 30. Qf6+ {[%clk 0:00:58]} 1-0


[Site "https://www.chess.com"]

[Event "Titled Tuesday Blitz January 31 Late 2023"]
[White "O`Gorman, Tom"]
[Black "Souza, Gustavo Horokoski De"]
[WhiteFideId "2508249"]
[BlackFideId "2146584"]
[WhiteElo "2355"]
[BlackElo "1943"]
[Result "1-0"]
[Round "01"]
[TimeControl "180+2"]
[Date "2023.01.31"]
[WhiteClock "0:01:58"]
[BlackClock "0:01:56"]

1. Nf3 {[%clk 0:02:59]}  d5 {[%clk 0:02:59]} 2. c4 {[%clk 0:02:58]}  c6 {[%clk 0:02:55]} 3. e3 {[%clk 0:02:58]}  Nf6 {[%clk 0:02:55]} 4. Nc3 {[%clk 0:02:57]}  g6 {[%clk 0:02:55]} 5. d4 {[%clk 0:02:56]}  Bg7 {[%clk 0:02:55]} 6. Bd2 {[%clk 0:02:55]}  O-O {[%clk 0:02:54]} 7. Be2 {[%clk 0:02:54]}  Nbd7 {[%clk 0:02:54]} 8. O-O {[%clk 0:02:54]}  Re8 {[%clk 0:02:54]} 9. b4 {[%clk 0:02:54]}  e5 {[%clk 0:02:43]} 10. cxd5 {[%clk 0:02:40]}  exd4 {[%clk 0:02:34]} 11. Nxd4 {[%clk 0:02:37]}  cxd5 {[%clk 0:02:32]} 12. Qb3 {[%clk 0:02:33]}  Nb6 {[%clk 0:02:29]} 13. Rfd1 {[%clk 0:02:30]}  Be6 {[%clk 0:02:24]} 14. a4 {[%clk 0:02:26]}  a6 {[%clk 0:02:24]} 15. a5 {[%clk 0:02:16]}  Nc4 {[%clk 0:02:23]} 16. Be1 {[%clk 0:02:14]}  Qe7 {[%clk 0:02:16]} 17. Nxe6 {[%clk 0:02:12]}  Qxe6 {[%clk 0:02:10]} 18. Rac1 {[%clk 0:02:07]}  Rac8 {[%clk 0:02:08]} 19. Nxd5 {[%clk 0:02:00]}  Nxa5 {[%clk 0:01:56]} 20. Nxf6+ {[%clk 0:01:58]} 1-0


[Site "https://www.chess.com"]

[Event "Titled Tuesday Blitz January 31 Late 2023"]
[White "mestrefeitosa19"]
[Black "Roux, Baptiste"]
[BlackFideId "36017450"]
[WhiteElo "2069"]
[BlackElo "2300"]
[Result "0-1"]
[Round "01"]
[TimeControl "180+2"]
[Date "2023.01.31"]
[WhiteClock "0:00:10"]
[BlackClock "0:00:18"]

1. c4 {[%clk 0:02:59]}  c5 {[%clk 0:02:56]} 2. Nc3 {[%clk 0:02:59]}  Nc6 {[%clk 0:02:56]} 3. Nf3 {[%clk 0:02:59]}  g6 {[%clk 0:02:56]} 4. e3 {[%clk 0:02:59]}  Bg7 {[%clk 0:02:50]} 5. d4 {[%clk 0:02:59]}  cxd4 {[%clk 0:02:47]} 6. exd4 {[%clk 0:03:00]}  d6 {[%clk 0:02:48]} 7. Be2 {[%clk 0:02:59]}  Nf6 {[%clk 0:02:41]} 8. O-O {[%clk 0:02:58]}  O-O {[%clk 0:02:40]} 9. d5 {[%clk 0:02:59]}  Nb8 {[%clk 0:02:21]} 10. h3 {[%clk 0:02:55]}  Nbd7 {[%clk 0:02:21]} 11. Be3 {[%clk 0:02:54]}  b6 {[%clk 0:02:20]} 12. Bd4 {[%clk 0:02:48]}  Qc7 {[%clk 0:02:11]} 13. Nb5 {[%clk 0:02:29]}  Qb8 {[%clk 0:02:11]} 14. Rc1 {[%clk 0:02:22]}  a6 {[%clk 0:02:05]} 15. Nc3 {[%clk 0:02:21]}  Nc5 {[%clk 0:02:00]} 16. Re1 {[%clk 0:02:18]}  Bf5 {[%clk 0:01:55]} 17. Nh4 {[%clk 0:02:06]}  Nfe4 {[%clk 0:01:25]} 18. Bxg7 {[%clk 0:01:53]}  Kxg7 {[%clk 0:01:23]} 19. Nxf5+ {[%clk 0:01:49]}  gxf5 {[%clk 0:01:24]} 20. Nxe4 {[%clk 0:01:39]}  fxe4 {[%clk 0:01:24]} 21. b4 {[%clk 0:01:36]}  Nd7 {[%clk 0:01:23]} 22. Qd4+ {[%clk 0:01:35]}  Nf6 {[%clk 0:01:21]} 23. Bg4 {[%clk 0:01:27]}  a5 {[%clk 0:01:18]} 24. b5 {[%clk 0:01:14]}  Qc7 {[%clk 0:01:01]} 25. Bf5 {[%clk 0:01:13]}  h6 {[%clk 0:00:47]} 26. Bxe4 {[%clk 0:01:08]}  Rac8 {[%clk 0:00:42]} 27. Bf5 {[%clk 0:01:04]}  Qc5 {[%clk 0:00:42]} 28. Qxc5 {[%clk 0:00:57]}  Rxc5 {[%clk 0:00:42]} 29. Rxe7 {[%clk 0:00:44]}  Nxd5 {[%clk 0:00:41]} 30. Rd7 {[%clk 0:00:41]}  Nf6 {[%clk 0:00:38]} 31. Rxd6 {[%clk 0:00:33]}  Rxf5 {[%clk 0:00:37]} 32. Rxb6 {[%clk 0:00:33]}  Rc8 {[%clk 0:00:38]} 33. Ra6 {[%clk 0:00:30]}  Rxb5 {[%clk 0:00:37]} 34. cxb5 {[%clk 0:00:26]}  Rxc1+ {[%clk 0:00:37]} 35. Kh2 {[%clk 0:00:26]}  a4 {[%clk 0:00:27]} 36. Rxa4 {[%clk 0:00:23]}  Rb1 {[%clk 0:00:26]} 37. Ra5 {[%clk 0:00:21]}  Ne4 {[%clk 0:00:26]} 38. a4 {[%clk 0:00:21]}  h5 {[%clk 0:00:21]} 39. f3 {[%clk 0:00:16]}  Nc3 {[%clk 0:00:20]} 40. Ra6 {[%clk 0:00:12]}  Rb4 {[%clk 0:00:19]} 41. Rc6 {[%clk 0:00:09]}  Nxa4 {[%clk 0:00:19]} 42. Rc5 {[%clk 0:00:10]}  Nxc5 {[%clk 0:00:18]} 0-1


[Site "https://www.chess.com"]

[Event "Titled Tuesday Blitz January 31 Late 2023"]
[White "Slade, Theodore"]
[Black "Levine, David"]
[WhiteFideId "426547"]
[BlackFideId "2011611"]
[WhiteElo "1995"]
[BlackElo "2040"]
[Result "1-0"]
[Round "01"]
[TimeControl "180+2"]
[Date "2023.01.31"]
[WhiteClock "0:02:26"]
[BlackClock "0:01:37"]

1. d4 {[%clk 0:03:00]}  d5 {[%clk 0:02:59]} 2. c4 {[%clk 0:03:01]}  dxc4 {[%clk 0:02:59]} 3. Nf3 {[%clk 0:02:59]}  Nf6 {[%clk 0:02:58]} 4. e3 {[%clk 0:03:00]}  e6 {[%clk 0:02:57]} 5. Bxc4 {[%clk 0:03:00]}  c5 {[%clk 0:02:57]} 6. O-O {[%clk 0:03:01]}  cxd4 {[%clk 0:02:56]} 7. Qxd4 {[%clk 0:02:54]}  Qxd4 {[%clk 0:02:53]} 8. Nxd4 {[%clk 0:02:55]}  a6 {[%clk 0:02:52]} 9. b3 {[%clk 0:02:52]}  Bd7 {[%clk 0:02:51]} 10. Bb2 {[%clk 0:02:51]}  Nc6 {[%clk 0:02:51]} 11. Nd2 {[%clk 0:02:47]}  Bc5 {[%clk 0:02:46]} 12. N2f3 {[%clk 0:02:44]}  Nxd4 {[%clk 0:02:45]} 13. Nxd4 {[%clk 0:02:41]}  Rc8 {[%clk 0:02:41]} 14. Rac1 {[%clk 0:02:41]}  Ke7 {[%clk 0:02:40]} 15. Rfd1 {[%clk 0:02:40]}  Rhd8 {[%clk 0:02:39]} 16. f3 {[%clk 0:02:39]}  e5 {[%clk 0:02:24]} 17. Nc2 {[%clk 0:02:36]}  e4 {[%clk 0:02:02]} 18. Bxf6+ {[%clk 0:02:30]}  Kxf6 {[%clk 0:02:00]} 19. fxe4 {[%clk 0:02:30]}  Ke7 {[%clk 0:01:59]} 20. Nd4 {[%clk 0:02:29]}  g6 {[%clk 0:01:54]} 21. Rf1 {[%clk 0:02:28]}  f6 {[%clk 0:01:48]} 22. Bd5 {[%clk 0:02:28]}  Bc6 {[%clk 0:01:37]} 23. Rxc5 {[%clk 0:02:26]} 1-0


[Site "https://www.chess.com"]

[Event "Titled Tuesday Blitz January 31 Late 2023"]
[White "Shapiro, Bryan"]
[Black "Liu, Eric"]
[WhiteFideId "2087740"]
[BlackFideId "30960240"]
[WhiteElo "1972"]
[BlackElo "2299"]
[Result "0-1"]
[Round "01"]
[TimeControl "180+2"]
[Date "2023.01.31"]
[WhiteClock "0:00:51"]
[BlackClock "0:00:46"]

1. d4 {[%clk 0:03:00]}  g6 {[%clk 0:02:56]} 2. e4 {[%clk 0:02:59]}  Bg7 {[%clk 0:02:56]} 3. Nf3 {[%clk 0:02:59]}  d6 {[%clk 0:02:57]} 4. c4 {[%clk 0:02:55]}  Nd7 {[%clk 0:02:54]} 5. Nc3 {[%clk 0:02:47]}  a6 {[%clk 0:02:54]} 6. Bd3 {[%clk 0:02:46]}  b6 {[%clk 0:02:54]} 7. O-O {[%clk 0:02:46]}  e6 {[%clk 0:02:54]} 8. Re1 {[%clk 0:02:46]}  Ne7 {[%clk 0:02:55]} 9. Bg5 {[%clk 0:02:45]}  h6 {[%clk 0:02:55]} 10. Bh4 {[%clk 0:02:45]}  O-O {[%clk 0:02:55]} 11. Bc2 {[%clk 0:02:41]}  Bb7 {[%clk 0:02:55]} 12. e5 {[%clk 0:02:41]}  dxe5 {[%clk 0:02:52]} 13. dxe5 {[%clk 0:02:41]}  Re8 {[%clk 0:02:06]} 14. Be4 {[%clk 0:02:37]}  Bxe4 {[%clk 0:02:03]} 15. Nxe4 {[%clk 0:02:38]}  Nxe5 {[%clk 0:02:01]} 16. Nxe5 {[%clk 0:02:18]}  Bxe5 {[%clk 0:02:02]} 17. Nf6+ {[%clk 0:02:10]}  Bxf6 {[%clk 0:02:01]} 18. Bxf6 {[%clk 0:02:11]}  Qd6 {[%clk 0:01:41]} 19. Qxd6 {[%clk 0:01:55]}  cxd6 {[%clk 0:01:42]} 20. Rad1 {[%clk 0:01:55]}  Nc8 {[%clk 0:01:24]} 21. f4 {[%clk 0:01:50]}  Ra7 {[%clk 0:01:22]} 22. Kf2 {[%clk 0:01:47]}  Rc7 {[%clk 0:01:22]} 23. b3 {[%clk 0:01:47]}  b5 {[%clk 0:01:22]} 24. cxb5 {[%clk 0:01:45]}  axb5 {[%clk 0:01:23]} 25. Rc1 {[%clk 0:01:46]}  Ra7 {[%clk 0:01:21]} 26. Rc2 {[%clk 0:01:39]}  Nb6 {[%clk 0:01:17]} 27. Bd4 {[%clk 0:01:30]}  Ra6 {[%clk 0:01:15]} 28. Rc6 {[%clk 0:01:29]}  Rxa2+ {[%clk 0:01:15]} 29. Kf3 {[%clk 0:01:29]}  Nd5 {[%clk 0:01:14]} 30. Rxd6 {[%clk 0:01:29]}  Ra3 {[%clk 0:01:13]} 31. Rb1 {[%clk 0:01:26]}  Rc8 {[%clk 0:01:09]} 32. g3 {[%clk 0:01:16]}  Ra2 {[%clk 0:01:08]} 33. h3 {[%clk 0:01:10]}  Kf8 {[%clk 0:01:08]} 34. Kg4 {[%clk 0:01:10]}  Ke7 {[%clk 0:01:08]} 35. Be5 {[%clk 0:00:56]}  f6 {[%clk 0:01:08]} 36. Re1 {[%clk 0:00:51]}  fxe5 {[%clk 0:01:08]} 37. fxe5 {[%clk 0:00:51]}  Rg2 {[%clk 0:00:54]} 38. Kf3 {[%clk 0:00:51]}  Rgc2 {[%clk 0:00:53]} 39. Ra6 {[%clk 0:00:49]}  R8c3+ {[%clk 0:00:51]} 40. Kg4 {[%clk 0:00:50]}  Rg2 {[%clk 0:00:49]} 41. Ra7+ {[%clk 0:00:50]}  Kd8 {[%clk 0:00:45]} 42. Ra8+ {[%clk 0:00:50]}  Kc7 {[%clk 0:00:45]} 43. Ra7+ {[%clk 0:00:50]}  Kb6 {[%clk 0:00:45]} 44. Rf7 {[%clk 0:00:50]}  Rgxg3+ {[%clk 0:00:45]} 45. Kh4 {[%clk 0:00:51]}  Rxh3+ {[%clk 0:00:45]} 46. Kg4 {[%clk 0:00:51]}  Rcg3# {[%clk 0:00:46]} 0-1


[Site "https://www.chess.com"]

[Event "Titled Tuesday Blitz January 31 Late 2023"]
[White "Milikow, Yoav"]
[Black "Dubov, Daniil"]
[WhiteFideId "2822237"]
[BlackFideId "24126055"]
[WhiteElo "2394"]
[BlackElo "2708"]
[Result "1/2-1/2"]
[Round "02"]
[TimeControl "180+2"]
[Date "2023.01.31"]
[WhiteClock "0:00:12"]
[BlackClock "0:00:06"]

1. d4 {[%clk 0:02:58]}  d5 {[%clk 0:02:57]} 2. c4 {[%clk 0:02:58]}  e6 {[%clk 0:02:57]} 3. Nc3 {[%clk 0:02:58]}  Nf6 {[%clk 0:02:57]} 4. cxd5 {[%clk 0:02:55]}  exd5 {[%clk 0:02:58]} 5. Bg5 {[%clk 0:02:55]}  Be7 {[%clk 0:02:52]} 6. e3 {[%clk 0:02:54]}  h6 {[%clk 0:02:52]} 7. Bh4 {[%clk 0:02:54]}  Bg4 {[%clk 0:02:52]} 8. Qb3 {[%clk 0:02:52]}  Nbd7 {[%clk 0:02:50]} 9. h3 {[%clk 0:02:50]}  Be6 {[%clk 0:02:48]} 10. Nf3 {[%clk 0:02:37]}  O-O {[%clk 0:02:48]} 11. Be2 {[%clk 0:02:34]}  Ne4 {[%clk 0:02:32]} 12. Bxe7 {[%clk 0:02:29]}  Qxe7 {[%clk 0:02:33]} 13. O-O {[%clk 0:02:24]}  Rab8 {[%clk 0:02:25]} 14. Bd3 {[%clk 0:02:14]}  Ndf6 {[%clk 0:02:20]} 15. Rfd1 {[%clk 0:01:55]}  Rfe8 {[%clk 0:02:11]} 16. Rac1 {[%clk 0:01:50]}  c5 {[%clk 0:02:03]} 17. Qa3 {[%clk 0:01:19]}  b5 {[%clk 0:01:38]} 18. Qa5 {[%clk 0:00:52]}  b4 {[%clk 0:01:37]} 19. Na4 {[%clk 0:00:49]}  c4 {[%clk 0:01:23]} 20. Bf1 {[%clk 0:00:38]}  Bf5 {[%clk 0:01:06]} 21. Ne5 {[%clk 0:00:35]}  Rec8 {[%clk 0:01:01]} 22. Nxc4 {[%clk 0:00:29]}  Nxf2 {[%clk 0:00:30]} 23. Kxf2 {[%clk 0:00:26]}  Ne4+ {[%clk 0:00:30]} 24. Kg1 {[%clk 0:00:25]}  Qg5 {[%clk 0:00:30]} 25. Qxd5 {[%clk 0:00:20]}  Rxc4 {[%clk 0:00:26]} 26. Bxc4 {[%clk 0:00:19]}  Qxe3+ {[%clk 0:00:25]} 27. Kh2 {[%clk 0:00:15]}  Qf4+ {[%clk 0:00:24]} 28. Kg1 {[%clk 0:00:14]}  Qe3+ {[%clk 0:00:22]} 29. Kh2 {[%clk 0:00:12]}  Qg3+ {[%clk 0:00:09]} 30. Kg1 {[%clk 0:00:12]}  Qe3+ {[%clk 0:00:06]} 1/2-1/2


[Site "https://www.chess.com"]

[Event "Titled Tuesday Blitz January 31 Late 2023"]
[White "Andreikin, Dmitry"]
[Black "Bjelobrk, Igor"]
[WhiteFideId "4158814"]
[BlackFideId "4300726"]
[WhiteElo "2729"]
[BlackElo "2403"]
[Result "1-0"]
[Round "02"]
[TimeControl "180+2"]
[Date "2023.01.31"]
[WhiteClock "0:01:44"]
[BlackClock "0:00:27"]

1. d4 {[%clk 0:03:00]}  Nf6 {[%clk 0:02:57]} 2. c4 {[%clk 0:03:00]}  e6 {[%clk 0:02:56]} 3. Nc3 {[%clk 0:03:00]}  Bb4 {[%clk 0:02:55]} 4. Qc2 {[%clk 0:03:00]}  d5 {[%clk 0:02:52]} 5. cxd5 {[%clk 0:03:00]}  exd5 {[%clk 0:02:51]} 6. Bg5 {[%clk 0:02:59]}  h6 {[%clk 0:02:45]} 7. Bxf6 {[%clk 0:02:59]}  Qxf6 {[%clk 0:02:44]} 8. e3 {[%clk 0:02:59]}  c6 {[%clk 0:02:41]} 9. a3 {[%clk 0:02:59]}  Bxc3+ {[%clk 0:02:39]} 10. Qxc3 {[%clk 0:02:59]}  O-O {[%clk 0:02:40]} 11. Ne2 {[%clk 0:03:00]}  Bf5 {[%clk 0:02:40]} 12. Ng3 {[%clk 0:02:59]}  Bg6 {[%clk 0:02:39]} 13. Be2 {[%clk 0:02:59]}  Nd7 {[%clk 0:02:39]} 14. O-O {[%clk 0:02:59]}  Rfe8 {[%clk 0:02:38]} 15. b4 {[%clk 0:02:59]}  a6 {[%clk 0:02:37]} 16. a4 {[%clk 0:02:59]}  Rac8 {[%clk 0:02:36]} 17. Bg4 {[%clk 0:02:58]}  Rcd8 {[%clk 0:02:30]} 18. b5 {[%clk 0:02:54]}  axb5 {[%clk 0:02:30]} 19. axb5 {[%clk 0:02:55]}  c5 {[%clk 0:02:31]} 20. Bxd7 {[%clk 0:02:54]}  cxd4 {[%clk 0:02:29]} 21. Qc7 {[%clk 0:02:43]}  Qe7 {[%clk 0:02:23]} 22. exd4 {[%clk 0:02:42]}  Rxd7 {[%clk 0:02:22]} 23. Qb6 {[%clk 0:02:41]}  Qd6 {[%clk 0:02:14]} 24. Qxd6 {[%clk 0:02:32]}  Rxd6 {[%clk 0:02:15]} 25. Rfc1 {[%clk 0:02:32]}  Rb6 {[%clk 0:02:14]} 26. Rc5 {[%clk 0:02:32]}  Bd3 {[%clk 0:02:09]} 27. Rxd5 {[%clk 0:02:32]}  Rxb5 {[%clk 0:02:09]} 28. Rd7 {[%clk 0:02:32]}  Bc4 {[%clk 0:02:04]} 29. h4 {[%clk 0:02:30]}  g6 {[%clk 0:02:00]} 30. Rc1 {[%clk 0:02:17]}  Be6 {[%clk 0:01:58]} 31. Rd6 {[%clk 0:02:17]}  h5 {[%clk 0:01:50]} 32. Ne4 {[%clk 0:02:15]}  Kg7 {[%clk 0:01:46]} 33. Ng5 {[%clk 0:02:15]}  Bd5 {[%clk 0:01:40]} 34. Rd7 {[%clk 0:02:14]}  Rf8 {[%clk 0:01:18]} 35. Rcc7 {[%clk 0:02:11]}  Kg8 {[%clk 0:01:12]} 36. f3 {[%clk 0:02:11]}  b6 {[%clk 0:00:49]} 37. Kh2 {[%clk 0:02:11]}  Ba2 {[%clk 0:00:49]} 38. Rb7 {[%clk 0:02:05]}  Rb2 {[%clk 0:00:47]} 39. Kg3 {[%clk 0:02:03]}  Rb5 {[%clk 0:00:44]} 40. Kf4 {[%clk 0:02:01]}  Bb3 {[%clk 0:00:43]} 41. Ke3 {[%clk 0:01:56]}  Ba2 {[%clk 0:00:43]} 42. Kf2 {[%clk 0:01:56]}  Bb3 {[%clk 0:00:43]} 43. Ne4 {[%clk 0:01:54]}  Ba2 {[%clk 0:00:38]} 44. Kg3 {[%clk 0:01:53]}  Be6 {[%clk 0:00:36]} 45. Rd6 {[%clk 0:01:52]}  Rb4 {[%clk 0:00:28]} 46. Nf6+ {[%clk 0:01:44]}  Kg7 {[%clk 0:00:27]} 47. Rxe6 {[%clk 0:01:44]} 1-0


[Site "https://www.chess.com"]

[Event "Titled Tuesday Blitz January 31 Late 2023"]
[White "Jobava, Baadur"]
[Black "Akobian, Varuzhan"]
[WhiteFideId "13601520"]
[BlackFideId "13300580"]
[WhiteElo "2578"]
[BlackElo "2591"]
[Result "0-1"]
[Round "02"]
[TimeControl "180+2"]
[Date "2023.01.31"]
[WhiteClock "0:01:39"]
[BlackClock "0:00:35"]

1. b3 {[%clk 0:03:00]}  d5 {[%clk 0:02:59]} 2. Bb2 {[%clk 0:03:01]}  Nf6 {[%clk 0:02:58]} 3. d3 {[%clk 0:03:01]}  c5 {[%clk 0:02:57]} 4. Nd2 {[%clk 0:03:02]}  Nc6 {[%clk 0:02:57]} 5. e4 {[%clk 0:03:03]}  Bg4 {[%clk 0:02:56]} 6. Be2 {[%clk 0:03:03]}  Bxe2 {[%clk 0:02:55]} 7. Qxe2 {[%clk 0:03:03]}  e6 {[%clk 0:02:55]} 8. Ngf3 {[%clk 0:03:04]}  Be7 {[%clk 0:02:54]} 9. exd5 {[%clk 0:03:04]}  Qxd5 {[%clk 0:02:51]} 10. O-O {[%clk 0:03:03]}  O-O {[%clk 0:02:50]} 11. Rfe1 {[%clk 0:03:03]}  Rfd8 {[%clk 0:02:47]} 12. a4 {[%clk 0:03:03]}  Rac8 {[%clk 0:02:46]} 13. Nc4 {[%clk 0:03:03]}  b6 {[%clk 0:02:44]} 14. h3 {[%clk 0:03:03]}  h6 {[%clk 0:02:44]} 15. Ne3 {[%clk 0:02:58]}  Qd7 {[%clk 0:02:42]} 16. Nc4 {[%clk 0:02:59]}  Qd5 {[%clk 0:02:31]} 17. Rad1 {[%clk 0:02:54]}  Nd4 {[%clk 0:02:26]} 18. Nxd4 {[%clk 0:02:45]}  cxd4 {[%clk 0:02:26]} 19. Qd2 {[%clk 0:02:45]}  Rd7 {[%clk 0:02:02]} 20. Re5 {[%clk 0:02:36]}  Qb7 {[%clk 0:01:56]} 21. Rb5 {[%clk 0:02:28]}  Nd5 {[%clk 0:01:38]} 22. Bxd4 {[%clk 0:02:13]}  a6 {[%clk 0:01:36]} 23. Rxd5 {[%clk 0:02:13]}  Rxd5 {[%clk 0:01:15]} 24. Bxb6 {[%clk 0:02:13]}  Rxc4 {[%clk 0:01:10]} 25. bxc4 {[%clk 0:02:13]}  Rg5 {[%clk 0:01:10]} 26. f4 {[%clk 0:01:41]}  Qxb6+ {[%clk 0:01:09]} 27. d4 {[%clk 0:01:42]}  Rf5 {[%clk 0:00:58]} 28. g4 {[%clk 0:01:39]}  Ra5 {[%clk 0:00:55]} 29. c5 {[%clk 0:01:39]}  Qc7 {[%clk 0:00:36]} 30. Qb4 {[%clk 0:01:39]}  Rxc5 {[%clk 0:00:35]} 0-1


[Site "https://www.chess.com"]